Workbook

Sheet DADOS
A1: 37587 | B1: BM - INSTRUÇÕES DE USO E PREENCHIMENTO
A2: v010
A5: 1. Este documento somente pode ser utilizado nas versões do Excel 2003 ou superior. Não deve ser utilizado versões do BROffice. O Documento deve ser salvo SOMENTE em extensão habilitada para macros (.xls ou .xlsm). Se o documento for salvo na extensão .xlsx, o arquivo será INUTILIZADO.
A7: 2. Para funcionamento pleno desse arquivo, a Segurança de Macros do Excel deve ser habilitada.
B8: 2.1 Na Versão Excel 2003, selecione na Faixa de Opções: Ferramentas --> Macro --> Segurança --> Na aba Nível de Segurança selecione a Opção "Baixo" --> Clique em OK --> Feche e abra o Excel novamente para utilizar a Planilha.
B9: 2.2 Na Versão Excel 2007 ou superior, selecione na Faixa de Opções: Arquivo --> Opções --> Central de Confiabilidade --> Configurações da Central de Confiabilidade --> Configurações de Macro --> Habilitar todas as Macros --> Clique em OK --> Feche e abra o excel novamente para utilizar a Planilha.
A11: 3. O Preenchimento deve ser feito somente nas células em amarelo. As outras células são de preenchimento Automático.
A12: 3.1. O BM identifica automaticamente as metas e macroitens/agrupadores através da estrutura de itens indicada.
A13: 3.2. Caso o nível reconhecido automaticamente não esteja adequado, poderá ser realizado o ajuste manual através da lista suspensa.
A15: 4. Ordem de Preenchimento
A16: 4.1. na Aba DADOS
A17: 4.1.1. Preencha no Quadro abaixo os Dados do TC/CR:
A19: Nº OPERAÇÃO | B19: Nº SICONV | C19: GESTOR | D19: PROGRAMA | F19: AÇÃO / MODALIDADE | I19: RECURSO
A20: 1042.297-49/2017 | B20: 847836/2017 | C20: Min. Des. Regional | D20: Planejamento Urbano | F20: Apoio a política Nacional de Desenvolvimento Urbano | I20: OGU
A22: PROPONENTE / TOMADOR | D22: MUNICÍPIO / UF | E22: LOCALIDADE / ENDEREÇO | F22: APELIDO DO EMPREENDIMENTO
A23: Prefeitura Municipal de Vertentes | D23: Vertentes/PE | E23: Trav. Pedro F. de Araújo e Tre. Rua Pau Brasil | F23: Pavimentação em Paralelepípedos
A26: 4.1.2. Preencha no Quadro abaixo os Dados do CTEF:
A28: Nº CTEF | B28: EMPRESA EXECUTORA | D28: CNPJ | E28: OBJETO DO CTEF | I28: INÍCIO DA OBRA
A29: 203/2019 | B29: JRV Engenharia EIRELI - EPP | D29: 24.486.271/0001-67 | E29: Pavimentação em paralelepípedos graníticos na Travessa Pedro Ferreira de Araújo e em Trecho da Rua Pau Brasil, na Cidade de Vertentes-PE. | I29: 2019-10-01
A31: 4.1.3 Selecione abaixo, o regime de Execução do CTEF:
A33: REGIME DE EXECUÇÃO
A34: Empreitada Preço Global
A39: 4.1.3. Preencha no Quadro abaixo os Dados do Responsável Técnico pela elaboração do Boletim de Medição:
A42: Nome: | C42: CREA/CAU: | D42: ART/RRT:
A43: Sofia Ximenes Lopes | C43: 1816729965 | D43: PE20200468894
A46: 4.1.4. [Opcional] Preencha no quadro abaixo se houver mais de um Responsável Técnico pela elaboração do Boletim de Medição:
A49: Nome: | C49: CREA/CAU: | D49: ART/RRT:
A52: 4.2. Os dados do orçamento contratado devem ser informados nos campos em amarelo claro da aba BM.
A53: 4.2.1. Para Regime de Empreitada Global ou Integral, devem ser informados somente o Item, Discriminação e Preço Total. Para Regime de Empreitada por Preço Unitário, Tarefa ou Contratação Integrada, informar o Item, Discriminação, Unidade, Quantidade e Preço Unitário.
A54: 4.2.2. É possível importar automaticamente o orçamento do MO27476 (Planilha Orçamentária – PO) por meio do botão Importar PO na aba Dados.
A55: 4.2.3. Os dados também podem ser copiados para o BM utilizando-se o recurso Colar Especial → Colar Valores
A56: 4.2.4. Podem ser adicionadas ou excluídas linhas do BM por meio do botão Editar Planilha.
A57: 4.2.5. O orçamento está adequado para receber estrutura de itens com até 4 níveis (meta, nível 2, nível 3 e nível 4) e um nível de serviços.
A58: 4.2.6. Observação importante: as linhas de metas e macrosserviços (totalizadores) não devem conter dados nas colunas Unid., Qtde. e Preço Unitário.
A59: 4.2.7. Caso o nível reconhecido automaticamente não esteja coerente, deverá ser realizada adequação manual através da lista.
A60: 4.2.8. Caso não tenha sido considerado arrendondamento em algum campo do orçamento, o profissional deverá desmarcar a caixa de seleção logo acima da referente coluna ("Quantidade", "Preço Unitário" e "Preço Total").
A62: 4.3. A cada medição devem ser seguidos os seguintes passos:
A63: · Informar o número da medição no campo Medição;
A64: · Informar a data da medição no campo superior da respectiva coluna no quadro lateral (Medição xx);
A65: · Para os regimes Empreitada por Preço Unitário, Tarefa, Contratação Integrada e Administração Direta: preencher a quantidade executada no período para cada serviço na coluna da respectiva medição no quadro lateral;
A66: · Para Empreitada por Preço Global ou Integral: preencher o percentual executado no período para cada serviço na coluna da respectiva medição no quadro lateral.
A67: · Caso seja necessário um número maior de medições que o constante no quadro (24 medições) ou caso o arquivo seja utilizado para empreendimentos já em execução, deverá ser alterado o número da medição da primeira coluna, devendo ser preenchido com o número da última medição aferida e indicando a evolução acumulada até o período na respectiva coluna. As medições futuras seguirão o procedimento padrão. | Q67: · Para Empreitada por Preço Global ou Integral: preencher o percentual executado no período para cada serviço na coluna da respectiva medição no quadro lateral. | Y67: · Para Empreitada por Preço Global ou Integral: preencher o percentual executado no período para cada serviço na coluna da respectiva medição no quadro lateral. | AG67: · Para Empreitada por Preço Global ou Integral: preencher o percentual executado no período para cada serviço na coluna da respectiva medição no quadro lateral. | AO67: · Para Empreitada por Preço Global ou Integral: preencher o percentual executado no período para cada serviço na coluna da respectiva medição no quadro lateral. | AW67: · Para Empreitada por Preço Global ou Integral: preencher o percentual executado no período para cada serviço na coluna da respectiva medição no quadro lateral. | BE67: · Para Empreitada por Preço Global ou Integral: preencher o percentual executado no período para cada serviço na coluna da respectiva medição no quadro lateral. | BM67: · Para Empreitada por Preço Global ou Integral: preencher o percentual executado no período para cada serviço na coluna da respectiva medição no quadro lateral. | BU67: · Para Empreitada por Preço Global ou Integral: preencher o percentual executado no período para cada serviço na coluna da respectiva medição no quadro lateral. | CC67: · Para Empreitada por Preço Global ou Integral: preencher o percentual executado no período para cada serviço na coluna da respectiva medição no quadro lateral. | CK67: · Para Empreitada por Preço Global ou Integral: preencher o percentual executado no período para cada serviço na coluna da respectiva medição no quadro lateral. | CS67: · Para Empreitada por Preço Global ou Integral: preencher o percentual executado no período para cada serviço na coluna da respectiva medição no quadro lateral. | DA67: · Para Empreitada por Preço Global ou Integral: preencher o percentual executado no período para cada serviço na coluna da respectiva medição no quadro lateral. | DI67: · Para Empreitada por Preço Global ou Integral: preencher o percentual executado no período para cada serviço na coluna da respectiva medição no quadro lateral. | DQ67: · Para Empreitada por Preço Global ou Integral: preencher o percentual executado no período para cada serviço na coluna da respectiva medição no quadro lateral. | DY67: · Para Empreitada por Preço Global ou Integral: preencher o percentual executado no período para cada serviço na coluna da respectiva medição no quadro lateral. | EG67: · Para Empreitada por Preço Global ou Integral: preencher o percentual executado no período para cada serviço na coluna da respectiva medição no quadro lateral. | EO67: · Para Empreitada por Preço Global ou Integral: preencher o percentual executado no período para cada serviço na coluna da respectiva medição no quadro lateral. | EW67: · Para Empreitada por Preço Global ou Integral: preencher o percentual executado no período para cada serviço na coluna da respectiva medição no quadro lateral. | FE67: · Para Empreitada por Preço Global ou Integral: preencher o percentual executado no período para cada serviço na coluna da respectiva medição no quadro lateral. | FM67: · Para Empreitada por Preço Global ou Integral: preencher o percentual executado no período para cada serviço na coluna da respectiva medição no quadro lateral. | FU67: · Para Empreitada por Preço Global ou Integral: preencher o percentual executado no período para cada serviço na coluna da respectiva medição no quadro lateral. | GC67: · Para Empreitada por Preço Global ou Integral: preencher o percentual executado no período para cada serviço na coluna da respectiva medição no quadro lateral. | GK67: · Para Empreitada por Preço Global ou Integral: preencher o percentual executado no período para cada serviço na coluna da respectiva medição no quadro lateral. | GS67: · Para Empreitada por Preço Global ou Integral: preencher o percentual executado no período para cada serviço na coluna da respectiva medição no quadro lateral. | HA67: · Para Empreitada por Preço Global ou Integral: preencher o percentual executado no período para cada serviço na coluna da respectiva medição no quadro lateral. | HI67: · Para Empreitada por Preço Global ou Integral: preencher o percentual executado no período para cada serviço na coluna da respectiva medição no quadro lateral. | HQ67: · Para Empreitada por Preço Global ou Integral: preencher o percentual executado no período para cada serviço na coluna da respectiva medição no quadro lateral. | HY67: · Para Empreitada por Preço Global ou Integral: preencher o percentual executado no período para cada serviço na coluna da respectiva medição no quadro lateral. | IG67: · Para Empreitada por Preço Global ou Integral: preencher o percentual executado no período para cada serviço na coluna da respectiva medição no quadro lateral. | IO67: · Para Empreitada por Preço Global ou Integral: preencher o percentual executado no período para cada serviço na coluna da respectiva medição no quadro lateral.
A69: 4.4. Nas medições em que não houver evolução de determinado serviço, é facultada a manutenção do campo vazio ou preechimento com 0 (zero).
A71: 4.5. Para cada medição (conforme nº informado no campo Medição), os valores da coluna correspondente à medição em questão são apresentados no BM, que calcula os demais dados de evolução física (qtde ou %) e evolução financeira (R$).

Sheet BM
A1: =CHOOSE(1+LOG(1+2*(K1="Meta")+4*(K1="Nível 2")+8*(K1="Nível 3")+16*(K1="Nível 4")+32*(K1="Serviço"),2),0,1,2,3,4,"S") -> S | B1: =IF(OR(A1="S",A1=0),0,IF(ISERROR(I1),H1,SMALL(H1:I1,1))) -> 0 | C1: =IF($A1=1,OFFSET(C1,-1,0)+1,OFFSET(C1,-1,0)) ->  | D1: =IF($A1=1,0,IF($A1=2,OFFSET(D1,-1,0)+1,OFFSET(D1,-1,0))) ->  | E1: =IF(AND($A1<=2,$A1<>0),0,IF($A1=3,OFFSET(E1,-1,0)+1,OFFSET(E1,-1,0))) ->  | F1: =IF(AND($A1<=3,$A1<>0),0,IF($A1=4,OFFSET(F1,-1,0)+1,OFFSET(F1,-1,0))) ->  | G1: =IF(AND($A1<=4,$A1<>0),0,IF($A1="S",OFFSET(G1,-1,0)+1,OFFSET(G1,-1,0))) ->  | H1: =IF(OR($A1="S",$A1=0),0,MATCH(0,OFFSET($B1,1,$A1,ROW($A$44)-ROW($A1)),0)) -> 0 | I1: =IF(OR($A1="S",$A1=0),0,MATCH(OFFSET($B1,0,$A1)+1,OFFSET($B1,1,$A1,ROW($A$44)-ROW($A1)),0)) -> 0 | J1: =LEN(LEFT($L1,LEN($L1)-1*(RIGHT($L1,1)=".")))-LEN(SUBSTITUTE(LEFT($L1,LEN($L1)-1*(RIGHT($L1,1)=".")),".","")) -> 0 | K1: =CHOOSE(1+LOG(1+2*($J1=3)+4*($J1=2)+8*($J1=1)+16*(AND($L1<>"",$L1<>0,$J1=0))+32*OR($N1<>"",RegimeExecucao="Global",AND($L1="",$M1="",$N1="")),2),"","Nível 4","Nível 3","Nível 2","Meta","Serviço") -> Serviço | Q1: =IF($A1="S",0,$R1) -> 0 | R1: =IF($A1="S",IF(RegimeExecucao="Global",ROUND($Q1,arredtot),total),IF($A1=0,0,ROUND(SomaAgrup,arredtot))) -> 0 | S1: =IF(AND($A1="S",COUNTIF($Z$13:$AW$13,mediçao-1)>0),SUM(OFFSET($Z1,0,0,1,MATCH(mediçao-1,$Z$13:$AW$13,0))),IF(AND(RegimeExecucao="Global",$R1>0,COUNTIF($Z$13:$AW$13,mediçao-1)>0),V1/$R1*100,0)) -> 0 | T1: =U1-S1 -> 0 | U1: =IF(AND($A1="S",COUNTIF($Z$13:$AW$13,mediçao)>0),SUM(OFFSET($Z1,0,0,1,MATCH(mediçao,$Z$13:$AW$13,0))),IF(AND(RegimeExecucao="Global",$R1>0,COUNTIF($Z$13:$AW$13,mediçao)>0),X1/$R1*100,0)) -> 0 | V1: =IF($A1="S",VTOTAL,IF($A1=0,0,ROUND(SomaAgrup,arredtot))) -> 0 | W1: =X1-V1 -> 0 | X1: =IF($A1="S",VTOTAL,IF($A1=0,0,ROUND(SomaAgrup,arredtot))) -> 0 | AY1: 0 | AZ1: =BA1-AY1 -> 0 | BA1: 0 | BB1: =IF($A1="S",VTOTAL,IF($A1=0,0,ROUND(SomaAgrup,arredtot))) -> 0 | BC1: =BD1-BB1 -> 0 | BD1: =IF($A1="S",VTOTAL,IF($A1=0,0,ROUND(SomaAgrup,arredtot))) -> 0 | BF1: =IF(BK1>0,L1,"") -> 0 | BH1: =IF(BK1>0,M1,"") -> 0 | BI1: =IF(BK1>0,N1,"") -> 0 | BK1: =IF(BR1>0,CHOOSE(MATCH(RegimeExecucao,{"Unitário","Global"},0),IF($A1="S",BR1/BN1,""),(BR1/BN1)*100),"") ->  | BN1: =IF(BR1>0,CHOOSE(MATCH(RegimeExecucao,{"Unitário","Global"},0),IF($A1="S",ROUND(P1,arredunit),""),ROUND(R1,arredtot)),"") ->  | BR1: =$X1-$BD1 -> 0
C3: Meta | D3: Nível 2 | E3: Nível 3 | F3: Nível 4 | G3: Serviço | O3: TRUE | P3: TRUE | R3: TRUE | S3: TRUE
M5: =IF(CAIXA.modo,"BA - BOLETIM DE AFERIÇÃO CAIXA","BM - BOLETIM DE MEDIÇÃO") -> BM - BOLETIM DE MEDIÇÃO | X5: Grau de Sigilo #PUBLICO | CC5: Motivos das glosas
M6: =IF(Import.RegimeExecução="","PREENCHA O REGIME DE EXECUÇÃO NA ABA DADOS",DADOS!A34) -> Empreitada Preço Global | CC6: não executado
CC7: não previsto no orçamento
Z8: =numLinhas -> 29 | CC8: material inadequado
Z9: 1 | AA9: 2 | AB9: 3 | AC9: 4 | AD9: 5 | AE9: 6 | AF9: 7 | AG9: 8 | AH9: 9 | AI9: 10 | AJ9: 11 | AK9: 12 | AL9: 13 | AM9: 14 | AN9: 15 | AO9: 16 | AP9: 17 | AQ9: 18 | AR9: 19 | AS9: 20 | AT9: 21 | AU9: 22 | AV9: 23 | AW9: 24 | CC9: desacordo com os projetos
L10: ="Realizado Acumulado: "&TEXT(ROUND(IF(CAIXA.modo,$BD$14,$X$14)/($R$14+10^-12),4),"0,00%") -> Realizado Acumulado: 64,50% | T10: Período: | U10: 2021-11-16 | W10: Medição: | X10: 2 | BC10: Medição: | BD10: =mediçao -> 2 | CC10: não atende especificações
I11: =RegimeExecucao -> Global | L11: ="Número de linhas do BM: "&numLinhas -> Número de linhas do BM: 29 | AE11: Datas das Medições | AQ11: Datas das Medições | BF11: Anexo | CC11: qualidade insatisfatória
L12: Orçamento Contratado | S12: ="Evolução Física "&CHOOSE(MATCH(RegimeExecucao,{"Unitário","Global"},0),"(Qtde.)","(%)") -> Evolução Física (%) | V12: Evolução Financeira (R$) | Z12: 2019-10-25 | AY12: ="Aferição Física "&CHOOSE(MATCH(RegimeExecucao,{"Unitário","Global"},0),"(Qtde.)","(%)") -> Aferição Física (%) | BB12: Aferição Financeira (R$) | BF12: Quadro de Glosas | CC12: ver observações abaixo
A13: Nível | B13: Altura | C13: n1 | D13: n2 | E13: n3 | F13: n4 | G13: n5 | H13: Czero | I13: Cnível | K13: Nível | L13: Item | M13: Discriminação | N13: Unid. | O13: Qtde. | P13: Preço Unitário (R$) | Q13: Preço Total (R$) | R13: Preço Total (R$) | S13: Acum. Anterior | T13: Período | U13: Acum. Incluindo Período | V13: Acum. Anterior | W13: Período | X13: Acum. Incluindo Período | Z13: 1 | AA13: =OFFSET(AA13,0,-1)+1 -> 2 | AB13: =OFFSET(AB13,0,-1)+1 -> 3 | AC13: 4 | AD13: 5 | AE13: 6 | AF13: 7 | AG13: 8 | AH13: 9 | AI13: 10 | AJ13: 11 | AK13: 12 | AL13: 13 | AM13: 14 | AN13: 15 | AO13: 16 | AP13: 17 | AQ13: 18 | AR13: 19 | AS13: 20 | AT13: 21 | AU13: 22 | AV13: 23 | AW13: 24 | AY13: Acum. Anterior | AZ13: Período | BA13: Acum. Incluindo Período | BB13: Acum. Anterior | BC13: Período | BD13: Acum. Incluindo Período | BF13: Item orçam. | BH13: =M13 -> Discriminação | BI13: Unid. | BK13: =CHOOSE(MATCH(RegimeExecucao,{"Unitário","Global"},0),"Quant. Glosada (unid)","Percentual Glosado (%)") -> Percentual Glosado (%) | BN13: =CHOOSE(MATCH(RegimeExecucao,{"Unitário","Global"},0),"Preço Unitário (R$)","Valor Total do Item (R$)") -> Valor Total do Item (R$) | BR13: Valor Total Glosado (R$) | BV13: Motivo da Glosa
B14: =COUNTA(OFFSET(B14,1,0):B$57) -> 30 | O14: TOTAL: | Q14: =$R14 -> 337309.23 | R14: =SUMIF(OFFSET($K14,1,0):$K44,"serviço",OFFSET(R14,1,0):R$44) -> 337309.23 | S14: =IF($V$14=0,0,IF(RegimeExecucao="Global",V14/$R14*100,0)) -> 37.62838627 | T14: =U14-S14 -> 26.87474043 | U14: =IF($X$14=0,0,IF(RegimeExecucao="Global",X14/$R14*100,0)) -> 64.5031267 | V14: =SUMIF(OFFSET(K14,1,0):K44,"Serviço",OFFSET(V14,1,0):V$44) -> 126924.02 | W14: =X14-V14 -> 90650.98 | X14: =SUMIF(OFFSET(K14,1,0):K44,"Serviço",OFFSET(X14,1,0):X$44) -> 217575 | AC14: ="Preencher abaixo com a "&CHOOSE(MATCH(RegimeExecucao,{"Unitário","Global"},0),"QUANTIDADE","PERCENTAGEM")&" executada no PERÍODO" -> Preencher abaixo com a PERCENTAGEM executada no PERÍODO | AO14: ="Preencher abaixo com a "&CHOOSE(MATCH(RegimeExecucao,{"Unitário","Global"},0),"QUANTIDADE","PERCENTAGEM")&" executada no PERÍODO" -> Preencher abaixo com a PERCENTAGEM executada no PERÍODO | AY14: =IF(BB14=0,0,IF(RegimeExecucao="Global",BB14/$R14*100,0)) -> 0 | AZ14: =BA14-AY14 -> 0 | BA14: =IF(BD14=0,0,IF(RegimeExecucao="Global",BD14/$R14*100,0)) -> 0 | BB14: =SUMIF(OFFSET(K14,1,0):K44,"serviço",OFFSET(BB14,1,0):BB$44) -> 0 | BC14: =BD14-BB14 -> 0 | BD14: =SUMIF(OFFSET($K14,1,0):K44,"serviço",OFFSET(BD14,1,0):BD$44) -> 0 | BH14: TOTAL: | BK14: =IF(BR14=0,0,IF(RegimeExecucao="Global",BR14/$R14*100,0)) -> 64.5031267 | BL14: =IF(BO14=0,0,IF(RegimeExecucao="Global",BO14/$R14*100,0)) -> 0 | BM14: =IF(BP14=0,0,IF(RegimeExecucao="Global",BP14/$R14*100,0)) -> 0 | BN14: =IF(AND($A14="S",BR14>0),CHOOSE(MATCH(RegimeExecucao,{"Unitário","Global"},0),ROUND(P14,arredunit),ROUND(R14,arredtot)),"") ->  | BR14: =$X14-$BD14 -> 217575
A15: =CHOOSE(1+LOG(1+2*(K15="Meta")+4*(K15="Nível 2")+8*(K15="Nível 3")+16*(K15="Nível 4")+32*(K15="Serviço"),2),0,1,2,3,4,"S") -> 1 | B15: =IF(OR(A15="S",A15=0),0,IF(ISERROR(I15),H15,SMALL(H15:I15,1))) -> 29 | C15: =IF($A15=1,OFFSET(C15,-1,0)+1,OFFSET(C15,-1,0)) -> 1 | D15: =IF($A15=1,0,IF($A15=2,OFFSET(D15,-1,0)+1,OFFSET(D15,-1,0))) -> 0 | E15: =IF(AND($A15<=2,$A15<>0),0,IF($A15=3,OFFSET(E15,-1,0)+1,OFFSET(E15,-1,0))) -> 0 | F15: =IF(AND($A15<=3,$A15<>0),0,IF($A15=4,OFFSET(F15,-1,0)+1,OFFSET(F15,-1,0))) -> 0 | G15: =IF(AND($A15<=4,$A15<>0),0,IF($A15="S",OFFSET(G15,-1,0)+1,OFFSET(G15,-1,0))) -> 0 | H15: =IF(OR($A15="S",$A15=0),0,MATCH(0,OFFSET($B15,1,$A15,ROW($A$44)-ROW($A15)),0)) -> 29 | I15: =IF(OR($A15="S",$A15=0),0,MATCH(OFFSET($B15,0,$A15)+1,OFFSET($B15,1,$A15,ROW($A$44)-ROW($A15)),0)) ->  | J15: =LEN(LEFT($L15,LEN($L15)-1*(RIGHT($L15,1)=".")))-LEN(SUBSTITUTE(LEFT($L15,LEN($L15)-1*(RIGHT($L15,1)=".")),".","")) -> 0 | K15: Meta | L15: 1. | M15: PAVIMENTACAO DE DIVERSAS RUAS DO MUNICÍPIO DE VERTENTES-PE | O15: 0 | P15: 0 | R15: =IF($A15="S",IF(RegimeExecucao="Global",ROUND($Q15,arredtot),total),IF($A15=0,0,ROUND(SomaAgrup,arredtot))) -> 337309.23 | S15: =IF(AND($A15="S",COUNTIF($Z$13:$AW$13,mediçao-1)>0),SUM(OFFSET($Z15,0,0,1,MATCH(mediçao-1,$Z$13:$AW$13,0))),IF(AND(RegimeExecucao="Global",$R15>0,COUNTIF($Z$13:$AW$13,mediçao-1)>0),V15/$R15*100,0)) -> 37.62838627 | T15: =U15-S15 -> 26.87474043 | U15: =IF(AND($A15="S",COUNTIF($Z$13:$AW$13,mediçao)>0),SUM(OFFSET($Z15,0,0,1,MATCH(mediçao,$Z$13:$AW$13,0))),IF(AND(RegimeExecucao="Global",$R15>0,COUNTIF($Z$13:$AW$13,mediçao)>0),X15/$R15*100,0)) -> 64.5031267 | V15: =IF($A15="S",VTOTAL,IF($A15=0,0,ROUND(SomaAgrup,arredtot))) -> 126924.02 | W15: =X15-V15 -> 90650.98 | X15: =IF($A15="S",VTOTAL,IF($A15=0,0,ROUND(SomaAgrup,arredtot))) -> 217575 | AY15: 0 | AZ15: =BA15-AY15 -> 0 | BA15: 0 | BB15: =IF($A15="S",VTOTAL,IF($A15=0,0,ROUND(SomaAgrup,arredtot))) -> 0 | BC15: =BD15-BB15 -> 0 | BD15: =IF($A15="S",VTOTAL,IF($A15=0,0,ROUND(SomaAgrup,arredtot))) -> 0 | BF15: =IF(BK15>0,L15,"") -> 1. | BH15: =IF(BK15>0,M15,"") -> PAVIMENTACAO DE DIVERSAS RUAS DO MUNICÍPIO DE VERTENTES-PE | BI15: =IF(BK15>0,N15,"") ->  | BK15: =IF(BR15>0,CHOOSE(MATCH(RegimeExecucao,{"Unitário","Global"},0),IF($A15="S",BR15/BN15,""),(BR15/BN15)*100),"") -> 64.5031267 | BN15: =IF(BR15>0,CHOOSE(MATCH(RegimeExecucao,{"Unitário","Global"},0),IF($A15="S",ROUND(P15,arredunit),""),ROUND(R15,arredtot)),"") -> 337309.23 | BR15: 217575
A16: =CHOOSE(1+LOG(1+2*(K16="Meta")+4*(K16="Nível 2")+8*(K16="Nível 3")+16*(K16="Nível 4")+32*(K16="Serviço"),2),0,1,2,3,4,"S") -> 2 | B16: =IF(OR(A16="S",A16=0),0,IF(ISERROR(I16),H16,SMALL(H16:I16,1))) -> 12 | C16: =IF($A16=1,OFFSET(C16,-1,0)+1,OFFSET(C16,-1,0)) -> 1 | D16: =IF($A16=1,0,IF($A16=2,OFFSET(D16,-1,0)+1,OFFSET(D16,-1,0))) -> 1 | E16: =IF(AND($A16<=2,$A16<>0),0,IF($A16=3,OFFSET(E16,-1,0)+1,OFFSET(E16,-1,0))) -> 0 | F16: =IF(AND($A16<=3,$A16<>0),0,IF($A16=4,OFFSET(F16,-1,0)+1,OFFSET(F16,-1,0))) -> 0 | G16: =IF(AND($A16<=4,$A16<>0),0,IF($A16="S",OFFSET(G16,-1,0)+1,OFFSET(G16,-1,0))) -> 0 | H16: 28 | I16: 12 | J16: =LEN(LEFT($L16,LEN($L16)-1*(RIGHT($L16,1)=".")))-LEN(SUBSTITUTE(LEFT($L16,LEN($L16)-1*(RIGHT($L16,1)=".")),".","")) -> 0 | K16: Nível 2 | M16: TRAVESSA PEDRO FERREIRA DE ARAÚJO | R16: =IF($A16="S",IF(RegimeExecucao="Global",ROUND($Q16,arredtot),total),IF($A16=0,0,ROUND(SomaAgrup,arredtot))) -> 287600.01 | S16: =IF(AND($A16="S",COUNTIF($Z$13:$AW$13,mediçao-1)>0),SUM(OFFSET($Z16,0,0,1,MATCH(mediçao-1,$Z$13:$AW$13,0))),IF(AND(RegimeExecucao="Global",$R16>0,COUNTIF($Z$13:$AW$13,mediçao-1)>0),V16/$R16*100,0)) -> 44.13213338 | T16: =U16-S16 -> 31.51981114 | U16: =IF(AND($A16="S",COUNTIF($Z$13:$AW$13,mediçao)>0),SUM(OFFSET($Z16,0,0,1,MATCH(mediçao,$Z$13:$AW$13,0))),IF(AND(RegimeExecucao="Global",$R16>0,COUNTIF($Z$13:$AW$13,mediçao)>0),X16/$R16*100,0)) -> 75.65194452 | V16: =IF($A16="S",VTOTAL,IF($A16=0,0,ROUND(SomaAgrup,arredtot))) -> 126924.02 | W16: =X16-V16 -> 90650.98 | X16: =IF($A16="S",VTOTAL,IF($A16=0,0,ROUND(SomaAgrup,arredtot))) -> 217575 | AY16: 0 | AZ16: =BA16-AY16 -> 0 | BA16: 0 | BB16: =IF($A16="S",VTOTAL,IF($A16=0,0,ROUND(SomaAgrup,arredtot))) -> 0 | BC16: =BD16-BB16 -> 0 | BD16: =IF($A16="S",VTOTAL,IF($A16=0,0,ROUND(SomaAgrup,arredtot))) -> 0 | BF16: =IF(BK16>0,L16,"") -> 0 | BH16: =IF(BK16>0,M16,"") -> TRAVESSA PEDRO FERREIRA DE ARAÚJO | BI16: =IF(BK16>0,N16,"") -> 0 | BK16: =IF(BR16>0,CHOOSE(MATCH(RegimeExecucao,{"Unitário","Global"},0),IF($A16="S",BR16/BN16,""),(BR16/BN16)*100),"") -> 75.65194452 | BN16: =IF(BR16>0,CHOOSE(MATCH(RegimeExecucao,{"Unitário","Global"},0),IF($A16="S",ROUND(P16,arredunit),""),ROUND(R16,arredtot)),"") -> 287600.01 | BR16: =$X16-$BD16 -> 217575
A17: =CHOOSE(1+LOG(1+2*(K17="Meta")+4*(K17="Nível 2")+8*(K17="Nível 3")+16*(K17="Nível 4")+32*(K17="Serviço"),2),0,1,2,3,4,"S") -> 3 | B17: =IF(OR(A17="S",A17=0),0,IF(ISERROR(I17),H17,SMALL(H17:I17,1))) -> 2 | C17: 1 | D17: 1 | E17: 1 | F17: 0 | G17: 0 | H17: 11 | I17: 2 | J17: 1 | K17: Nível 3 | L17: 1.1. | M17: SERVIÇOS PRELIMINARES | O17: 0 | P17: 0 | R17: 3642.6 | S17: 100 | T17: 0 | U17: 100 | V17: 3642.6 | W17: =X17-V17 -> 0 | X17: 3642.6 | AY17: 0 | AZ17: =BA17-AY17 -> 0 | BA17: 0 | BB17: 0 | BC17: =BD17-BB17 -> 0 | BD17: 0 | BF17: =IF(BK17>0,L17,"") -> 1.1. | BH17: =IF(BK17>0,M17,"") -> SERVIÇOS PRELIMINARES | BI17: =IF(BK17>0,N17,"") ->  | BK17: =IF(BR17>0,CHOOSE(MATCH(RegimeExecucao,{"Unitário","Global"},0),IF($A17="S",BR17/BN17,""),(BR17/BN17)*100),"") -> 100 | BN17: =IF(BR17>0,CHOOSE(MATCH(RegimeExecucao,{"Unitário","Global"},0),IF($A17="S",ROUND(P17,arredunit),""),ROUND(R17,arredtot)),"") -> 3642.6 | BR17: 3642.6
A18: S | B18: 0 | C18: 1 | D18: 1 | E18: 1 | F18: 0 | G18: 1 | H18: 0 | I18: 0 | J18: 3 | K18: Serviço | L18: 1.1.0.1. | M18: PLACA DE OBRA EM CHAPA DE ACO GALVANIZADO | N18: M2 | O18: 10 | P18: 407.41 | Q18: 3642.6 | R18: 3642.6 | S18: 100 | T18: 0 | U18: 100 | V18: 3642.6 | W18: 0 | X18: 3642.6 | Z18: 100 | AY18: 0 | AZ18: 0 | BA18: 0 | BB18: 0 | BC18: 0 | BD18: 0 | BF18: 1.1.0.1. | BH18: PLACA DE OBRA EM CHAPA DE ACO GALVANIZADO | BI18: M2 | BK18: =IF(BR18>0,CHOOSE(MATCH(RegimeExecucao,{"Unitário","Global"},0),IF($A18="S",BR18/BN18,""),(BR18/BN18)*100),"") -> 100 | BN18: =IF(BR18>0,CHOOSE(MATCH(RegimeExecucao,{"Unitário","Global"},0),IF($A18="S",ROUND(P18,arredunit),""),ROUND(R18,arredtot)),"") -> 3642.6 | BR18: 3642.6
A19: 3 | B19: 5 | C19: 1 | D19: 1 | E19: 2 | F19: 0 | G19: 0 | H19: 9 | I19: 5 | J19: 2 | K19: Nível 3 | L19: 1.2.1. | M19: PAVIMENTAÇÃO | O19: 0 | P19: 0 | R19: 204791.3 | S19: 43.94491368 | T19: 21.8660949 | U19: 65.81100857 | V19: 89995.36 | W19: 44779.86 | X19: 134775.22 | AY19: 0 | AZ19: 0 | BA19: 0 | BB19: 0 | BC19: 0 | BD19: 0 | BF19: 1.2.1. | BH19: PAVIMENTAÇÃO | BK19: =IF(BR19>0,CHOOSE(MATCH(RegimeExecucao,{"Unitário","Global"},0),IF($A19="S",BR19/BN19,""),(BR19/BN19)*100),"") -> 65.81100857 | BN19: =IF(BR19>0,CHOOSE(MATCH(RegimeExecucao,{"Unitário","Global"},0),IF($A19="S",ROUND(P19,arredunit),""),ROUND(R19,arredtot)),"") -> 204791.3 | BR19: 134775.22
A20: S | B20: 0 | C20: 1 | D20: 1 | E20: 2 | F20: 0 | G20: 1 | H20: 0 | I20: 0 | J20: 3 | K20: Serviço | L20: 1.2.1.1. | M20: REGULARIZACAO E COMPACTACAO DE SUBLEITO ATE 20 CM DE ESPESSURA | N20: M2 | O20: 1119.38 | P20: 1.7 | Q20: 3824.38 | R20: 3824.38 | S20: 100 | T20: 0 | U20: 100 | V20: 3824.38 | W20: 0 | X20: 3824.38 | Z20: 100 | AY20: 0 | AZ20: 0 | BA20: 0 | BB20: 0 | BC20: 0 | BD20: 0 | BF20: 1.2.1.1. | BH20: REGULARIZACAO E COMPACTACAO DE SUBLEITO ATE 20 CM DE ESPESSURA | BI20: M2 | BK20: =IF(BR20>0,CHOOSE(MATCH(RegimeExecucao,{"Unitário","Global"},0),IF($A20="S",BR20/BN20,""),(BR20/BN20)*100),"") -> 100 | BN20: =IF(BR20>0,CHOOSE(MATCH(RegimeExecucao,{"Unitário","Global"},0),IF($A20="S",ROUND(P20,arredunit),""),ROUND(R20,arredtot)),"") -> 3824.38 | BR20: 3824.38
A21: S | B21: 0 | C21: 1 | D21: 1 | E21: 2 | F21: 0 | G21: 2 | H21: 0 | I21: 0 | J21: 3 | K21: Serviço | L21: 1.2.1.2. | M21: ASSENTAMENTO DE GUIA (MEIO-FIO) EM TRECHO RETO, CONFECCIONADA EM CONCRETO PRÉ-FABRICADO, DIMENSÕES 100X15X13X30 CM (COMPRIMENTO X BASE INFERIOR X BASE SUPERIOR X ALTURA), PARA VIAS URBANAS (USO VIÁRIO). AF_06/2016 | N21: M | O21: 448.69 | P21: 40.28 | Q21: 38762.34 | R21: 38762.34 | S21: 41.48 | T21: 58.52 | U21: 100 | V21: 16078.62 | W21: 22683.72 | X21: 38762.34 | Z21: 41.48 | AA21: 58.52 | AY21: 0 | AZ21: 0 | BA21: 0 | BB21: 0 | BC21: 0 | BD21: 0 | BF21: 1.2.1.2. | BH21: ASSENTAMENTO DE GUIA (MEIO-FIO) EM TRECHO RETO, CONFECCIONADA EM CONCRETO PRÉ-FABRICADO, DIMENSÕES 100X15X13X30 CM (COMPRIMENTO X BASE INFERIOR X BASE SUPERIOR X ALTURA), PARA VIAS URBANAS (USO VIÁRIO). AF_06/2016 | BI21: M | BK21: =IF(BR21>0,CHOOSE(MATCH(RegimeExecucao,{"Unitário","Global"},0),IF($A21="S",BR21/BN21,""),(BR21/BN21)*100),"") -> 100 | BN21: =IF(BR21>0,CHOOSE(MATCH(RegimeExecucao,{"Unitário","Global"},0),IF($A21="S",ROUND(P21,arredunit),""),ROUND(R21,arredtot)),"") -> 38762.34 | BR21: 38762.34
A22: S | B22: 0 | C22: 1 | D22: 1 | E22: 2 | F22: 0 | G22: 3 | H22: 0 | I22: 0 | J22: 3 | K22: Serviço | L22: 1.2.1.3. | M22: EXECUÇÃO DE SARJETA DE CONCRETO USINADO, MOLDADA IN LOCO EM TRECHO RETO, 30 CM BASE X 15 CM ALTURA. AF_06/2016 | N22: M | O22: 404.49 | P22: 41.21 | Q22: 39040.49 | R22: 39040.49 | S22: 41.8 | T22: 11.39 | U22: 53.19 | V22: 16318.92 | W22: 4446.72 | X22: 20765.64 | Z22: 41.8 | AA22: 11.39 | AY22: 0 | AZ22: 0 | BA22: 0 | BB22: 0 | BC22: 0 | BD22: 0 | BF22: 1.2.1.3. | BH22: EXECUÇÃO DE SARJETA DE CONCRETO USINADO, MOLDADA IN LOCO EM TRECHO RETO, 30 CM BASE X 15 CM ALTURA. AF_06/2016 | BI22: M | BK22: =IF(BR22>0,CHOOSE(MATCH(RegimeExecucao,{"Unitário","Global"},0),IF($A22="S",BR22/BN22,""),(BR22/BN22)*100),"") -> 53.19000863 | BN22: =IF(BR22>0,CHOOSE(MATCH(RegimeExecucao,{"Unitário","Global"},0),IF($A22="S",ROUND(P22,arredunit),""),ROUND(R22,arredtot)),"") -> 39040.49 | BR22: 20765.64
A23: S | B23: 0 | C23: 1 | D23: 1 | E23: 2 | F23: 0 | G23: 4 | H23: 0 | I23: 0 | J23: 3 | K23: Serviço | L23: 1.2.1.4. | M23: PAVIMENTO EM PARALELEPIPEDO SOBRE COLCHAO DE AREIA REJUNTADO COM ARGAMASSA DE CIMENTO E AREIA NO TRAÇO 1:3 (PEDRAS PEQUENAS 30 A 35 PECAS POR M2) | N23: M2 | O23: 998.03 | P23: 61.22 | Q23: 123164.09 | R23: 123164.09 | S23: 43.66 | T23: 14.33 | U23: 57.99 | V23: 53773.44 | W23: 17649.42 | X23: 71422.86 | Z23: 43.66 | AA23: 14.33 | AY23: 0 | AZ23: 0 | BA23: 0 | BB23: 0 | BC23: 0 | BD23: 0 | BF23: 1.2.1.4. | BH23: PAVIMENTO EM PARALELEPIPEDO SOBRE COLCHAO DE AREIA REJUNTADO COM ARGAMASSA DE CIMENTO E AREIA NO TRAÇO 1:3 (PEDRAS PEQUENAS 30 A 35 PECAS POR M2) | BI23: M2 | BK23: =IF(BR23>0,CHOOSE(MATCH(RegimeExecucao,{"Unitário","Global"},0),IF($A23="S",BR23/BN23,""),(BR23/BN23)*100),"") -> 57.99000342 | BN23: =IF(BR23>0,CHOOSE(MATCH(RegimeExecucao,{"Unitário","Global"},0),IF($A23="S",ROUND(P23,arredunit),""),ROUND(R23,arredtot)),"") -> 123164.09 | BR23: 71422.86
A24: 3 | B24: 4 | C24: 1 | D24: 1 | E24: 3 | F24: 0 | G24: 0 | H24: 4 | J24: 2 | K24: Nível 3 | L24: 1.2.2. | M24: CALÇADA | O24: 0 | P24: 0 | R24: 79166.11 | S24: 42.04584512 | T24: 57.9428748 | U24: 99.98871992 | V24: 33286.06 | W24: 45871.12 | X24: 79157.18 | AY24: 0 | AZ24: 0 | BA24: 0 | BB24: 0 | BC24: 0 | BD24: 0 | BF24: 1.2.2. | BH24: CALÇADA | BK24: =IF(BR24>0,CHOOSE(MATCH(RegimeExecucao,{"Unitário","Global"},0),IF($A24="S",BR24/BN24,""),(BR24/BN24)*100),"") -> 99.98871992 | BN24: =IF(BR24>0,CHOOSE(MATCH(RegimeExecucao,{"Unitário","Global"},0),IF($A24="S",ROUND(P24,arredunit),""),ROUND(R24,arredtot)),"") -> 79166.11 | BR24: 79157.18
A25: S | B25: 0 | C25: 1 | D25: 1 | E25: 3 | F25: 0 | G25: 1 | H25: 0 | I25: 0 | J25: 3 | K25: Serviço | L25: 1.2.2.1. | M25: PISO TÁTIL DIRECIONAL E/OU ALERTA, DE CONCRETO - DIRECIONAL E ALERTA, 40X40X2,5 CM. | N25: M2 | O25: 39.6 | P25: 90.58 | Q25: 2257.06 | R25: 2257.06 | S25: 37.5 | T25: 62.5 | U25: 100 | V25: 846.4 | W25: 1410.66 | X25: 2257.06 | Z25: 37.5 | AA25: 62.5 | AY25: 0 | AZ25: 0 | BA25: 0 | BB25: 0 | BC25: 0 | BD25: 0 | BF25: 1.2.2.1. | BH25: PISO TÁTIL DIRECIONAL E/OU ALERTA, DE CONCRETO - DIRECIONAL E ALERTA, 40X40X2,5 CM. | BI25: M2 | BK25: =IF(BR25>0,CHOOSE(MATCH(RegimeExecucao,{"Unitário","Global"},0),IF($A25="S",BR25/BN25,""),(BR25/BN25)*100),"") -> 100 | BN25: =IF(BR25>0,CHOOSE(MATCH(RegimeExecucao,{"Unitário","Global"},0),IF($A25="S",ROUND(P25,arredunit),""),ROUND(R25,arredtot)),"") -> 2257.06 | BR25: 2257.06
A26: S | B26: 0 | C26: 1 | D26: 1 | E26: 3 | F26: 0 | G26: 2 | H26: 0 | I26: 0 | J26: 3 | K26: Serviço | L26: 1.2.2.2. | M26: ALVENARIA DE EMBASAMENTO EM TIJOLOS CERAMICOS MACICOS 5X10X20CM, ASSENTADO COM ARGAMASSA TRACO 1:2:8 (CIMENTO, CAL E AREIA) | N26: M3 | O26: 7.97 | P26: 696.86 | Q26: 12394.47 | R26: 12394.47 | S26: 42.8 | T26: 57.18 | U26: 99.98 | V26: 5304.83 | W26: 7087.16 | X26: 12391.99 | Z26: 42.8 | AA26: 57.18 | AY26: 0 | AZ26: 0 | BA26: 0 | BB26: 0 | BC26: 0 | BD26: 0 | BF26: 1.2.2.2. | BH26: ALVENARIA DE EMBASAMENTO EM TIJOLOS CERAMICOS MACICOS 5X10X20CM, ASSENTADO COM ARGAMASSA TRACO 1:2:8 (CIMENTO, CAL E AREIA) | BI26: M3 | BK26: =IF(BR26>0,CHOOSE(MATCH(RegimeExecucao,{"Unitário","Global"},0),IF($A26="S",BR26/BN26,""),(BR26/BN26)*100),"") -> 99.97999108 | BN26: =IF(BR26>0,CHOOSE(MATCH(RegimeExecucao,{"Unitário","Global"},0),IF($A26="S",ROUND(P26,arredunit),""),ROUND(R26,arredtot)),"") -> 12394.47 | BR26: 12391.99
A27: S | B27: 0 | C27: 1 | D27: 1 | E27: 3 | F27: 0 | G27: 3 | H27: 0 | I27: 0 | J27: 3 | K27: Serviço | L27: 1.2.2.3. | M27: EXECUÇÃO DE PASSEIO (CALÇADA) OU PISO DE CONCRETO COM CONCRETO MOLDADO IN LOCO, FEITO EM OBRA, ACABAMENTO CONVENCIONAL, NÃO ARMADO. AF_07/2016 | N27: M3 | O27: 41.68 | P27: 647.71 | Q27: 64514.58 | R27: 64514.58 | S27: 42.06 | T27: 57.93 | U27: 99.99 | V27: 27134.83 | W27: 37373.3 | X27: 64508.13 | Z27: 42.06 | AA27: 57.93 | AY27: 0 | AZ27: 0 | BA27: 0 | BB27: 0 | BC27: 0 | BD27: 0 | BF27: 1.2.2.3. | BH27: EXECUÇÃO DE PASSEIO (CALÇADA) OU PISO DE CONCRETO COM CONCRETO MOLDADO IN LOCO, FEITO EM OBRA, ACABAMENTO CONVENCIONAL, NÃO ARMADO. AF_07/2016 | BI27: M3 | BK27: =IF(BR27>0,CHOOSE(MATCH(RegimeExecucao,{"Unitário","Global"},0),IF($A27="S",BR27/BN27,""),(BR27/BN27)*100),"") -> 99.99000226 | BN27: =IF(BR27>0,CHOOSE(MATCH(RegimeExecucao,{"Unitário","Global"},0),IF($A27="S",ROUND(P27,arredunit),""),ROUND(R27,arredtot)),"") -> 64514.58 | BR27: 64508.13
A28: 2 | B28: 10 | C28: 1 | D28: 2 | E28: 0 | F28: 0 | G28: 0 | H28: 16 | I28: 10 | J28: 1 | K28: Nível 2 | L28: 1.3. | M28: TRECHO DA RUA PAU BRASIL | O28: 0 | P28: 0 | R28: 41677.31 | S28: 0 | T28: 0 | U28: 0 | V28: 0 | W28: 0 | X28: 0 | AY28: 0 | AZ28: 0 | BA28: 0 | BB28: 0 | BC28: 0 | BD28: 0 | BF28: 1.3. | BH28: TRECHO DA RUA PAU BRASIL | BK28: =IF(BR28>0,CHOOSE(MATCH(RegimeExecucao,{"Unitário","Global"},0),IF($A28="S",BR28/BN28,""),(BR28/BN28)*100),"") ->  | BN28: =IF(BR28>0,CHOOSE(MATCH(RegimeExecucao,{"Unitário","Global"},0),IF($A28="S",ROUND(P28,arredunit),""),ROUND(R28,arredtot)),"") ->  | BR28: 0
A29: 3 | B29: 5 | C29: 1 | D29: 2 | E29: 1 | F29: 0 | G29: 0 | H29: 9 | I29: 5 | J29: 2 | K29: Nível 3 | L29: 1.3.1. | M29: PAVIMENTAÇÃO | O29: 0 | P29: 0 | R29: 31864.7 | S29: 0 | T29: 0 | U29: 0 | V29: 0 | W29: 0 | X29: 0 | AY29: 0 | AZ29: 0 | BA29: 0 | BB29: 0 | BC29: 0 | BD29: 0 | BF29: 1.3.1. | BH29: PAVIMENTAÇÃO | BK29: =IF(BR29>0,CHOOSE(MATCH(RegimeExecucao,{"Unitário","Global"},0),IF($A29="S",BR29/BN29,""),(BR29/BN29)*100),"") ->  | BN29: =IF(BR29>0,CHOOSE(MATCH(RegimeExecucao,{"Unitário","Global"},0),IF($A29="S",ROUND(P29,arredunit),""),ROUND(R29,arredtot)),"") ->  | BR29: 0
A30: S | B30: 0 | C30: 1 | D30: 2 | E30: 1 | F30: 0 | G30: 1 | H30: 0 | I30: 0 | J30: 3 | K30: Serviço | L30: 1.3.1.1. | M30: REGULARIZACAO E COMPACTACAO DE SUBLEITO ATE 20 CM DE ESPESSURA | N30: M2 | O30: 1646.14 | P30: 1.7 | Q30: 598.61 | R30: 598.61 | S30: 0 | T30: 0 | U30: 0 | V30: 0 | W30: 0 | X30: 0 | AY30: 0 | AZ30: 0 | BA30: 0 | BB30: 0 | BC30: 0 | BD30: 0 | BF30: 1.3.1.1. | BH30: REGULARIZACAO E COMPACTACAO DE SUBLEITO ATE 20 CM DE ESPESSURA | BI30: M2 | BK30: =IF(BR30>0,CHOOSE(MATCH(RegimeExecucao,{"Unitário","Global"},0),IF($A30="S",BR30/BN30,""),(BR30/BN30)*100),"") ->  | BN30: =IF(BR30>0,CHOOSE(MATCH(RegimeExecucao,{"Unitário","Global"},0),IF($A30="S",ROUND(P30,arredunit),""),ROUND(R30,arredtot)),"") ->  | BR30: 0
A31: S | B31: 0 | C31: 1 | D31: 2 | E31: 1 | F31: 0 | G31: 2 | H31: 0 | I31: 0 | J31: 3 | K31: Serviço | L31: 1.3.1.2. | M31: ASSENTAMENTO DE GUIA (MEIO-FIO) EM TRECHO RETO, CONFECCIONADA EM CONCRETO PRÉ-FABRICADO, DIMENSÕES 100X15X13X30 CM (COMPRIMENTO X BASE INFERIOR X BASE SUPERIOR X ALTURA), PARA VIAS URBANAS (USO VIÁRIO). AF_06/2016 | N31: M | O31: 729.64 | P31: 40.28 | Q31: 6244.15 | R31: 6244.15 | S31: 0 | T31: 0 | U31: 0 | V31: 0 | W31: 0 | X31: 0 | AY31: 0 | AZ31: 0 | BA31: 0 | BB31: 0 | BC31: 0 | BD31: 0 | BF31: 1.3.1.2. | BH31: ASSENTAMENTO DE GUIA (MEIO-FIO) EM TRECHO RETO, CONFECCIONADA EM CONCRETO PRÉ-FABRICADO, DIMENSÕES 100X15X13X30 CM (COMPRIMENTO X BASE INFERIOR X BASE SUPERIOR X ALTURA), PARA VIAS URBANAS (USO VIÁRIO). AF_06/2016 | BI31: M | BK31: =IF(BR31>0,CHOOSE(MATCH(RegimeExecucao,{"Unitário","Global"},0),IF($A31="S",BR31/BN31,""),(BR31/BN31)*100),"") ->  | BN31: =IF(BR31>0,CHOOSE(MATCH(RegimeExecucao,{"Unitário","Global"},0),IF($A31="S",ROUND(P31,arredunit),""),ROUND(R31,arredtot)),"") ->  | BR31: 0
A32: S | B32: 0 | C32: 1 | D32: 2 | E32: 1 | F32: 0 | G32: 3 | H32: 0 | I32: 0 | J32: 3 | K32: Serviço | L32: 1.3.1.3. | M32: EXECUÇÃO DE SARJETA DE CONCRETO USINADO, MOLDADA IN LOCO EM TRECHO RETO, 30 CM BASE X 15 CM ALTURA. AF_06/2016 | N32: M | O32: 729.64 | P32: 41.21 | Q32: 5444.62 | R32: 5444.62 | S32: 0 | T32: 0 | U32: 0 | V32: 0 | W32: 0 | X32: 0 | AY32: 0 | AZ32: 0 | BA32: 0 | BB32: 0 | BC32: 0 | BD32: 0 | BF32: 1.3.1.3. | BH32: EXECUÇÃO DE SARJETA DE CONCRETO USINADO, MOLDADA IN LOCO EM TRECHO RETO, 30 CM BASE X 15 CM ALTURA. AF_06/2016 | BI32: M | BK32: =IF(BR32>0,CHOOSE(MATCH(RegimeExecucao,{"Unitário","Global"},0),IF($A32="S",BR32/BN32,""),(BR32/BN32)*100),"") ->  | BN32: =IF(BR32>0,CHOOSE(MATCH(RegimeExecucao,{"Unitário","Global"},0),IF($A32="S",ROUND(P32,arredunit),""),ROUND(R32,arredtot)),"") ->  | BR32: 0
A33: S | B33: 0 | C33: 1 | D33: 2 | E33: 1 | F33: 0 | G33: 4 | H33: 0 | I33: 0 | J33: 3 | K33: Serviço | L33: 1.3.1.4. | M33: PAVIMENTO EM PARALELEPIPEDO SOBRE COLCHAO DE AREIA REJUNTADO COM ARGAMASSA DE CIMENTO E AREIA NO TRAÇO 1:3 (PEDRAS PEQUENAS 30 A 35 PECAS POR M2) | N33: M2 | O33: 1427.25 | P33: 61.22 | Q33: 19577.32 | R33: 19577.32 | S33: 0 | T33: 0 | U33: 0 | V33: 0 | W33: 0 | X33: 0 | AY33: 0 | AZ33: 0 | BA33: 0 | BB33: 0 | BC33: 0 | BD33: 0 | BF33: 1.3.1.4. | BH33: PAVIMENTO EM PARALELEPIPEDO SOBRE COLCHAO DE AREIA REJUNTADO COM ARGAMASSA DE CIMENTO E AREIA NO TRAÇO 1:3 (PEDRAS PEQUENAS 30 A 35 PECAS POR M2) | BI33: M2 | BK33: =IF(BR33>0,CHOOSE(MATCH(RegimeExecucao,{"Unitário","Global"},0),IF($A33="S",BR33/BN33,""),(BR33/BN33)*100),"") ->  | BN33: =IF(BR33>0,CHOOSE(MATCH(RegimeExecucao,{"Unitário","Global"},0),IF($A33="S",ROUND(P33,arredunit),""),ROUND(R33,arredtot)),"") ->  | BR33: 0
A34: 3 | B34: 4 | C34: 1 | D34: 2 | E34: 2 | F34: 0 | G34: 0 | H34: 4 | J34: 2 | K34: Nível 3 | L34: 1.3.2. | M34: CALÇADA | O34: 0 | P34: 0 | R34: 9812.61 | S34: 0 | T34: 0 | U34: 0 | V34: 0 | W34: 0 | X34: 0 | AY34: 0 | AZ34: 0 | BA34: 0 | BB34: 0 | BC34: 0 | BD34: 0 | BF34: 1.3.2. | BH34: CALÇADA | BK34: =IF(BR34>0,CHOOSE(MATCH(RegimeExecucao,{"Unitário","Global"},0),IF($A34="S",BR34/BN34,""),(BR34/BN34)*100),"") ->  | BN34: =IF(BR34>0,CHOOSE(MATCH(RegimeExecucao,{"Unitário","Global"},0),IF($A34="S",ROUND(P34,arredunit),""),ROUND(R34,arredtot)),"") ->  | BR34: 0
A35: S | B35: 0 | C35: 1 | D35: 2 | E35: 2 | F35: 0 | G35: 1 | H35: 0 | I35: 0 | J35: 3 | K35: Serviço | L35: 1.3.2.1. | M35: PISO TÁTIL DIRECIONAL E/OU ALERTA, DE CONCRETO - DIRECIONAL E ALERTA, 40X40X2,5 CM. | N35: M2 | O35: 28.8 | P35: 90.58 | Q35: 978.06 | R35: 978.06 | S35: 0 | T35: 0 | U35: 0 | V35: 0 | W35: 0 | X35: 0 | AY35: 0 | AZ35: 0 | BA35: 0 | BB35: 0 | BC35: 0 | BD35: 0 | BF35: 1.3.2.1. | BH35: PISO TÁTIL DIRECIONAL E/OU ALERTA, DE CONCRETO - DIRECIONAL E ALERTA, 40X40X2,5 CM. | BI35: M2 | BK35: =IF(BR35>0,CHOOSE(MATCH(RegimeExecucao,{"Unitário","Global"},0),IF($A35="S",BR35/BN35,""),(BR35/BN35)*100),"") ->  | BN35: =IF(BR35>0,CHOOSE(MATCH(RegimeExecucao,{"Unitário","Global"},0),IF($A35="S",ROUND(P35,arredunit),""),ROUND(R35,arredtot)),"") ->  | BR35: 0
A36: S | B36: 0 | C36: 1 | D36: 2 | E36: 2 | F36: 0 | G36: 2 | H36: 0 | I36: 0 | J36: 3 | K36: Serviço | L36: 1.3.2.2. | M36: ALVENARIA DE EMBASAMENTO EM TIJOLOS CERAMICOS MACICOS 5X10X20CM, ASSENTADO COM ARGAMASSA TRACO 1:2:8 (CIMENTO, CAL E AREIA) | N36: M3 | O36: 14.35 | P36: 696.86 | Q36: 1773.19 | R36: 1773.19 | S36: 0 | T36: 0 | U36: 0 | V36: 0 | W36: 0 | X36: 0 | AY36: 0 | AZ36: 0 | BA36: 0 | BB36: 0 | BC36: 0 | BD36: 0 | BF36: 1.3.2.2. | BH36: ALVENARIA DE EMBASAMENTO EM TIJOLOS CERAMICOS MACICOS 5X10X20CM, ASSENTADO COM ARGAMASSA TRACO 1:2:8 (CIMENTO, CAL E AREIA) | BI36: M3 | BK36: =IF(BR36>0,CHOOSE(MATCH(RegimeExecucao,{"Unitário","Global"},0),IF($A36="S",BR36/BN36,""),(BR36/BN36)*100),"") ->  | BN36: =IF(BR36>0,CHOOSE(MATCH(RegimeExecucao,{"Unitário","Global"},0),IF($A36="S",ROUND(P36,arredunit),""),ROUND(R36,arredtot)),"") ->  | BR36: 0
A37: =CHOOSE(1+LOG(1+2*(K37="Meta")+4*(K37="Nível 2")+8*(K37="Nível 3")+16*(K37="Nível 4")+32*(K37="Serviço"),2),0,1,2,3,4,"S") -> S | B37: =IF(OR(A37="S",A37=0),0,IF(ISERROR(I37),H37,SMALL(H37:I37,1))) -> 0 | C37: 1 | D37: 2 | E37: 2 | F37: 0 | G37: 3 | H37: 0 | I37: 0 | J37: 3 | K37: Serviço | L37: 1.3.2.3. | M37: EXECUÇÃO DE PASSEIO (CALÇADA) OU PISO DE CONCRETO COM CONCRETO MOLDADO IN LOCO, FEITO EM OBRA, ACABAMENTO CONVENCIONAL, NÃO ARMADO. AF_07/2016 | N37: M3 | O37: 75.72 | P37: 647.71 | Q37: 7061.36 | R37: 7061.36 | S37: =IF(AND($A37="S",COUNTIF($Z$13:$AW$13,mediçao-1)>0),SUM(OFFSET($Z37,0,0,1,MATCH(mediçao-1,$Z$13:$AW$13,0))),IF(AND(RegimeExecucao="Global",$R37>0,COUNTIF($Z$13:$AW$13,mediçao-1)>0),V37/$R37*100,0)) -> 0 | T37: =U37-S37 -> 0 | U37: =IF(AND($A37="S",COUNTIF($Z$13:$AW$13,mediçao)>0),SUM(OFFSET($Z37,0,0,1,MATCH(mediçao,$Z$13:$AW$13,0))),IF(AND(RegimeExecucao="Global",$R37>0,COUNTIF($Z$13:$AW$13,mediçao)>0),X37/$R37*100,0)) -> 0 | V37: 0 | W37: =X37-V37 -> 0 | X37: 0 | AY37: 0 | AZ37: =BA37-AY37 -> 0 | BA37: 0 | BB37: 0 | BC37: =BD37-BB37 -> 0 | BD37: 0 | BF37: =IF(BK37>0,L37,"") -> 1.3.2.3. | BH37: =IF(BK37>0,M37,"") -> EXECUÇÃO DE PASSEIO (CALÇADA) OU PISO DE CONCRETO COM CONCRETO MOLDADO IN LOCO, FEITO EM OBRA, ACABAMENTO CONVENCIONAL, NÃO ARMADO. AF_07/2016 | BI37: =IF(BK37>0,N37,"") -> M3 | BK37: =IF(BR37>0,CHOOSE(MATCH(RegimeExecucao,{"Unitário","Global"},0),IF($A37="S",BR37/BN37,""),(BR37/BN37)*100),"") ->  | BN37: =IF(BR37>0,CHOOSE(MATCH(RegimeExecucao,{"Unitário","Global"},0),IF($A37="S",ROUND(P37,arredunit),""),ROUND(R37,arredtot)),"") ->  | BR37: 0
A38: =CHOOSE(1+LOG(1+2*(K38="Meta")+4*(K38="Nível 2")+8*(K38="Nível 3")+16*(K38="Nível 4")+32*(K38="Serviço"),2),0,1,2,3,4,"S") -> 2 | B38: =IF(OR(A38="S",A38=0),0,IF(ISERROR(I38),H38,SMALL(H38:I38,1))) -> 6 | C38: 1 | D38: 3 | E38: 0 | F38: 0 | G38: 0 | H38: 6 | J38: 1 | K38: Nível 2 | L38: 1.12. | M38: SINALIZAÇÃO | O38: 0 | P38: 0 | R38: 8031.91 | S38: =IF(AND($A38="S",COUNTIF($Z$13:$AW$13,mediçao-1)>0),SUM(OFFSET($Z38,0,0,1,MATCH(mediçao-1,$Z$13:$AW$13,0))),IF(AND(RegimeExecucao="Global",$R38>0,COUNTIF($Z$13:$AW$13,mediçao-1)>0),V38/$R38*100,0)) -> 0 | T38: =U38-S38 -> 0 | U38: =IF(AND($A38="S",COUNTIF($Z$13:$AW$13,mediçao)>0),SUM(OFFSET($Z38,0,0,1,MATCH(mediçao,$Z$13:$AW$13,0))),IF(AND(RegimeExecucao="Global",$R38>0,COUNTIF($Z$13:$AW$13,mediçao)>0),X38/$R38*100,0)) -> 0 | V38: 0 | W38: =X38-V38 -> 0 | X38: 0 | AY38: 0 | AZ38: =BA38-AY38 -> 0 | BA38: 0 | BB38: 0 | BC38: =BD38-BB38 -> 0 | BD38: 0 | BF38: =IF(BK38>0,L38,"") -> 1.12. | BH38: =IF(BK38>0,M38,"") -> SINALIZAÇÃO | BI38: =IF(BK38>0,N38,"") ->  | BK38: =IF(BR38>0,CHOOSE(MATCH(RegimeExecucao,{"Unitário","Global"},0),IF($A38="S",BR38/BN38,""),(BR38/BN38)*100),"") ->  | BN38: =IF(BR38>0,CHOOSE(MATCH(RegimeExecucao,{"Unitário","Global"},0),IF($A38="S",ROUND(P38,arredunit),""),ROUND(R38,arredtot)),"") ->  | BR38: 0
A39: S | B39: 0 | C39: 1 | D39: 3 | E39: 0 | F39: 0 | G39: 1 | H39: 0 | I39: 0 | J39: 3 | K39: Serviço | L39: 1.12.0.1. | M39: PLACA ESMALTADA PARA IDENTIFICAÇÃO NR DE RUA, DIMENSÕES 45X25CM | N39: UN | O39: 20 | P39: 99.38 | Q39: 402.04 | R39: 402.04 | S39: 0 | T39: 0 | U39: 0 | V39: 0 | W39: 0 | X39: 0 | AY39: 0 | AZ39: 0 | BA39: 0 | BB39: 0 | BC39: 0 | BD39: 0 | BF39: 1.12.0.1. | BH39: PLACA ESMALTADA PARA IDENTIFICAÇÃO NR DE RUA, DIMENSÕES 45X25CM | BI39: UN | BK39: =IF(BR39>0,CHOOSE(MATCH(RegimeExecucao,{"Unitário","Global"},0),IF($A39="S",BR39/BN39,""),(BR39/BN39)*100),"") ->  | BN39: =IF(BR39>0,CHOOSE(MATCH(RegimeExecucao,{"Unitário","Global"},0),IF($A39="S",ROUND(P39,arredunit),""),ROUND(R39,arredtot)),"") ->  | BR39: 0
A40: S | B40: 0 | C40: 1 | D40: 3 | E40: 0 | F40: 0 | G40: 2 | H40: 0 | I40: 0 | J40: 3 | K40: Serviço | L40: 1.12.0.2. | M40: Fornecimento e implantação de placa de regulamentação em aço D = 0,60 m - película retrorrefletiva tipo I e SI | N40: UND | O40: 48 | P40: 211.19 | Q40: 2460 | R40: 2460 | S40: 0 | T40: 0 | U40: 0 | V40: 0 | W40: 0 | X40: 0 | AY40: 0 | AZ40: 0 | BA40: 0 | BB40: 0 | BC40: 0 | BD40: 0 | BF40: 1.12.0.2. | BH40: Fornecimento e implantação de placa de regulamentação em aço D = 0,60 m - película retrorrefletiva tipo I e SI | BI40: UND | BK40: =IF(BR40>0,CHOOSE(MATCH(RegimeExecucao,{"Unitário","Global"},0),IF($A40="S",BR40/BN40,""),(BR40/BN40)*100),"") ->  | BN40: =IF(BR40>0,CHOOSE(MATCH(RegimeExecucao,{"Unitário","Global"},0),IF($A40="S",ROUND(P40,arredunit),""),ROUND(R40,arredtot)),"") ->  | BR40: 0
A41: S | B41: 0 | C41: 1 | D41: 3 | E41: 0 | F41: 0 | G41: 3 | H41: 0 | I41: 0 | J41: 3 | K41: Serviço | L41: 1.12.0.3. | M41: Fornecimento e implantação de placa de regulamentação em aço, R1 lado 0,248 m - película retrorrefletiva tipo I e SI | N41: UND | O41: 22 | P41: 260.88 | Q41: 1122.05 | R41: 1122.05 | S41: 0 | T41: 0 | U41: 0 | V41: 0 | W41: 0 | X41: 0 | AY41: 0 | AZ41: 0 | BA41: 0 | BB41: 0 | BC41: 0 | BD41: 0 | BF41: 1.12.0.3. | BH41: Fornecimento e implantação de placa de regulamentação em aço, R1 lado 0,248 m - película retrorrefletiva tipo I e SI | BI41: UND | BK41: =IF(BR41>0,CHOOSE(MATCH(RegimeExecucao,{"Unitário","Global"},0),IF($A41="S",BR41/BN41,""),(BR41/BN41)*100),"") ->  | BN41: =IF(BR41>0,CHOOSE(MATCH(RegimeExecucao,{"Unitário","Global"},0),IF($A41="S",ROUND(P41,arredunit),""),ROUND(R41,arredtot)),"") ->  | BR41: 0
A42: S | B42: 0 | C42: 1 | D42: 3 | E42: 0 | F42: 0 | G42: 4 | H42: 0 | I42: 0 | J42: 3 | K42: Serviço | L42: 1.12.0.4. | M42: Fornecimento e implantação de suporte metálico galvanizado para placa de regulamentação - D = 0,60 m | N42: UND | O42: 48 | P42: 233.55 | Q42: 2797.32 | R42: 2797.32 | S42: 0 | T42: 0 | U42: 0 | V42: 0 | W42: 0 | X42: 0 | AY42: 0 | AZ42: 0 | BA42: 0 | BB42: 0 | BC42: 0 | BD42: 0 | BF42: 1.12.0.4. | BH42: Fornecimento e implantação de suporte metálico galvanizado para placa de regulamentação - D = 0,60 m | BI42: UND | BK42: =IF(BR42>0,CHOOSE(MATCH(RegimeExecucao,{"Unitário","Global"},0),IF($A42="S",BR42/BN42,""),(BR42/BN42)*100),"") ->  | BN42: =IF(BR42>0,CHOOSE(MATCH(RegimeExecucao,{"Unitário","Global"},0),IF($A42="S",ROUND(P42,arredunit),""),ROUND(R42,arredtot)),"") ->  | BR42: 0
A43: S | B43: 0 | C43: 1 | D43: 3 | E43: 0 | F43: 0 | G43: 5 | H43: 0 | I43: 0 | J43: 3 | K43: Serviço | L43: 1.12.0.5. | M43: Fornecimento e implantação de suporte metálico galvanizado para placa de regulamentação - R1 - lado de 0,248 m | N43: UND | O43: 22 | P43: 248.34 | Q43: 1250.5 | R43: 1250.5 | S43: 0 | T43: 0 | U43: 0 | V43: 0 | W43: 0 | X43: 0 | AY43: 0 | AZ43: 0 | BA43: 0 | BB43: 0 | BC43: 0 | BD43: 0 | BF43: 1.12.0.5. | BH43: Fornecimento e implantação de suporte metálico galvanizado para placa de regulamentação - R1 - lado de 0,248 m | BI43: UND | BK43: =IF(BR43>0,CHOOSE(MATCH(RegimeExecucao,{"Unitário","Global"},0),IF($A43="S",BR43/BN43,""),(BR43/BN43)*100),"") ->  | BN43: =IF(BR43>0,CHOOSE(MATCH(RegimeExecucao,{"Unitário","Global"},0),IF($A43="S",ROUND(P43,arredunit),""),ROUND(R43,arredtot)),"") ->  | BR43: 0
A44: -1 | B44: 0 | C44: 0 | D44: 0 | E44: 0 | F44: 0 | G44: 0
CC45: FALSE
L46: Obs:
L48: Obs 2: | M48: =IF(OR(AND($R$3=FALSE,$S$3=FALSE,RegimeExecucao="Global"),AND($O$3=FALSE,$P$3=FALSE,$R$3=FALSE,$S$3=FALSE)),"Não foi considerado arredondamento nos valores da planilha.",CONCATENATE("Foi considerado arredondamento de duas casas decimais para ",IF(AND(RegimeExecucao="Unitário",$O$3=TRUE),"Quantidade; ",""),IF(AND(RegimeExecucao="Unitário",$P$3=TRUE),"Preço unitário; ",""),IF($R$3=TRUE,"Preço total; ",""),,IF($S$3=TRUE,"Medição.",""))) -> Foi considerado arredondamento de duas casas decimais para Preço total; Medição.
L49: Os serviços medidos informados neste BM encontram-se concluídos, estão em conformidade com os projetos e especificações aceitos pela CAIXA e foram executados de acordo com as normas técnicas. | CC49: Os serviços medidos informados neste BM encontram-se concluídos, estão em conformidade com os projetos e especificações aceitos pela CAIXA e foram executados de acordo com as normas técnicas.
L50: =DADOS!$D$23&", "&TEXT(TODAY(),"dd")&" de "&TEXT(TODAY(),"mmmm")&" de "&TEXT(TODAY(),"aaaa") -> Vertentes/PE, 26 de abril de 2022 | CC50: 1. A vistoria, no caso de obras, tem como principal objetivo observar o seu estágio atual de andamento e se o que é visualizável em campo é compatível com o avanço físico do empreendimento atestado no BM da fiscalização técnica do tomador. 2. A vistoria técnica é amparada exclusivamente em constatação visual, sem qualquer apoio de instrumentos, testes e/ou ensaios e a precisão esperada das informações é compatível com essa metodologia. 3. O ateste, a medição, a fiscalização e a aceitação dos serviços realizados e materiais/equipamentos utilizados na obra são de responsabilidade do profissional indicado pelo agente promotor/tomador como Fiscal da Obra, conforme ART específica.
L51: Local e Data | P51: Resp. Técnico Fiscalização: | R51: =IF(DADOS!A50="","",DADOS!A50) ->  | V51: Resp. Técnico Fiscalização: | W51: =DADOS!A43 -> Sofia Ximenes Lopes | BB51: Profissional CAIXA: | BI51: Profissional CAIXA: | BN51: =BC51 -> 0
P52: CREA/CAU: | R52: =DADOS!C50 -> 0 | V52: CREA/CAU: | W52: =DADOS!C43 -> 1816729965 | BB52: Matrícula: | BI52: Matrícula: | BN52: =BC52 -> 0
P53: ART/RRT: | R53: =DADOS!D50 -> 0 | V53: ART/RRT: | W53: =DADOS!D43 -> PE20200468894 | BB53: CREA/CAU: | BI53: CREA/CAU: | BN53: =BC53 -> 0
